bitfinex-derivatives/quotes_ETHF0:USTF0_20240905
["timestamp","ask_amount","ask_price","bid_price","bid_amount"]
[1725528485115,0.43,2395.9,2395.7,0.41742]
[1725528485711,0.44136593,2396.0,2395.8,0.4174]
[1725528485908,0.44136593,2396.0,2395.7,0.41742]
[1725528486307,0.44136593,2396.0,2395.8,0.41741]
[1725528486715,0.44136593,2396.0,2395.9,0.4174]
[1725528486915,10.87128569,2406.1,2395.9,3.2078]
[1725528486916,7.3188,2396.7,2395.9,3.2078]
[1725528487115,0.4336,2396.5,2396.0,0.4234]
[1725528487419,0.41732,2396.4,2396.0,0.84076]
[1725528487613,0.41733,2396.3,2396.0,0.84076]
[1725528488112,0.41739,2396.0,2395.7,0.41743]
[1725528488318,0.8846,2395.9,2395.5,0.41746]
[1725528488619,0.41742,2395.8,2395.5,0.41746]
[1725528488804,1.7643,2395.9,2395.6,0.41745]
[1725528490018,1.7643,2395.9,2395.6,0.41744]
[1725528490214,1.7643,2395.9,2395.7,0.41743]
[1725528490414,1.7643,2395.9,2395.6,0.41744]
[1725528491315,1.7643,2395.9,2395.7,0.41743]
[1725528491513,1.3469,2395.9,2395.7,0.41743]
[1725528491711,3.2078,2396.1,2395.9,0.41738]
[1725528492108,7.3814,2396.1,2395.5,3.2078]
[1725528492307,7.14121,2396.1,2395.5,0.41745]
[1725528492518,0.41745,2395.6,2395.3,0.41749]
[1725528492712,0.41748,2395.4,2395.1,0.435]
[1725528492912,0.41748,2395.4,2395.1,4.06032]
[1725528493118,4.5368,2395.5,2395.1,3.6428]
[1725528493421,4.95428,2395.5,2395.2,0.41751]
[1725528494117,4.95428,2395.5,2395.3,0.4175]
[1725528494315,4.5368,2395.5,2395.4,0.41748]
[1725528494519,4.1042,2395.5,2395.4,0.41748]
[1725528496231,4.1042,2395.5,2395.1,0.435]
[1725528496418,2.89,2395.4,2395.0,0.00626593]
[1725528496618,0.41753,2395.1,2395.0,0.00626593]
[1725528499113,1.46137,2395.1,2395.0,0.00626593]
[1725528499317,0.41762,2394.7,2394.2,3.7765]
[1725528499526,0.4176,2394.8,2394.5,0.41763]
[1725528499717,0.4176,2394.8,2394.6,0.41762]
[1725528500520,6.52164593,2394.9,2394.6,0.41762]
[1725528500715,6.52164593,2394.9,2394.5,0.00626593]
[1725528500716,0.41761,2394.7,2394.5,0.00626593]
[1725528500925,0.4623,2394.8,2394.5,0.00626593]
[1725528501124,0.41762,2394.6,2394.5,0.00626593]
[1725528501426,0.41761,2394.7,2394.5,0.42390593]
[1725528501829,0.41761,2394.7,2394.5,0.00626593]
[1725528502128,0.41761,2394.7,2394.5,0.42389593]
[1725528502824,0.41762,2394.6,2394.5,0.00626593]
[1725528503324,0.87989,2394.8,2394.6,0.41762]
[1725528503630,0.41762,2394.6,2394.5,0.00626593]
[1725528503923,10.69142,2394.6,2394.5,0.00626593]
[1725528504930,7.80142,2394.6,2394.5,0.00626593]
[1725528505225,10.69142,2394.6,2394.5,0.00626593]
[1725528505429,11.73548,2394.6,2394.5,0.00626593]
[1725528505822,7.80142,2394.6,2394.5,0.00626593]
[1725528506020,10.69142,2394.6,2394.5,0.00626593]
[1725528506426,7.80142,2394.6,2394.5,0.00626593]
[1725528506826,3.2078,2394.6,2394.5,0.42390593]
[1725528507232,3.2078,2394.6,2394.5,0.00626593]
[1725528507830,3.62542,2394.6,2394.5,0.00626593]
[1725528509429,4.05382,2394.6,2394.5,0.00626593]
[1725528509630,4.05382,2394.6,2394.5,0.42390593]
[1725528509631,3.6362,2394.6,2394.5,0.42390593]
[1725528509836,4.05382,2394.6,2394.5,0.00626593]
[1725528511640,4.05382,2394.6,2394.5,0.42390593]
[1725528512139,4.05382,2394.6,2394.5,0.00626593]
[1725528512441,4.05382,2394.6,2394.5,0.42390593]
[1725528513135,0.84602,2394.6,2394.5,0.42390593]
[1725528513344,3.2078,2394.7,2394.6,0.41762]
[1725528513638,3.6254,2394.7,2394.5,0.42389593]
[1725528514029,3.2078,2394.7,2394.6,0.41762]
[1725528514945,3.6254,2394.7,2394.6,0.41762]
[1725528515241,3.2078,2394.7,2394.6,0.41762]
[1725528516938,3.2078,2394.7,2394.6,0.84042]
[1725528517936,3.2078,2394.7,2394.6,5.01642]
[1725528518141,0.00626593,2394.9,2394.8,0.41759]
[1725528519044,0.00626593,2394.9,2394.7,0.41759]
[1725528519045,0.42383593,2394.9,2394.7,0.41759]
[1725528520141,0.42383593,2394.9,2394.8,0.41759]
[1725528520733,0.00626593,2394.9,2394.8,0.41759]
[1725528521738,0.41759,2394.8,2394.7,0.4176]
[1725528522055,0.41759,2394.8,2394.6,0.41761]
[1725528522346,3.2078,2394.7,2394.5,0.00626593]
[1725528522636,0.00626593,2394.9,2394.8,0.41759]
[1725528525242,0.00626593,2394.9,2394.6,0.4519]
[1725528525545,0.41762,2394.6,2394.5,0.00626593]
[1725528526943,0.41761,2394.7,2394.5,0.42389593]
[1725528527341,0.41761,2394.7,2394.5,0.00626593]
[1725528527542,0.41761,2394.7,2394.5,0.42389593]
[1725528529944,3.64696593,2394.9,2394.8,0.41759]
[1725528531041,0.43916593,2394.9,2394.8,0.41759]
[1725528531341,0.00626593,2394.9,2394.8,0.41759]
[1725528533042,0.00626593,2394.9,2394.8,5.63757]
[1725528534146,0.00626593,2394.9,2394.8,4.59359]
[1725528535132,0.00626593,2394.9,2394.8,10.59359]
[1725528535834,0.00626593,2394.9,2394.8,13.80139]
[1725528536650,0.00626593,2394.9,2394.8,14.84537]
[1725528537349,0.00626593,2394.9,2394.8,8.84537]
[1725528537536,0.00626593,2394.9,2394.8,14.84537]
[1725528537843,0.00626593,2394.9,2394.8,8.84537]
[1725528538240,0.00626593,2394.9,2394.8,14.84537]
[1725528538443,0.00626593,2394.9,2394.8,8.84537]
[1725528538847,0.00626593,2394.9,2394.8,14.84537]
[1725528539048,0.00626593,2394.9,2394.8,5.63757]
[1725528539241,0.00626593,2394.9,2394.8,14.84537]
[1725528539545,0.00626593,2394.9,2394.8,13.80139]
[1725528539754,0.00626593,2394.9,2394.8,0.41759]
[1725528539951,0.00626593,2394.9,2394.8,5.63757]
[1725528540142,0.00626593,2394.9,2394.8,7.80139]
[1725528541749,0.00626593,2394.9,2394.8,16.69139]
[1725528541949,0.00626593,2394.9,2394.8,17.7813811]
[1725528543947,0.00626593,2394.9,2394.7,2.68184872]
[1725528543948,0.00626593,2394.9,2394.7,1.0899911]
[1725528544454,0.87156593,2394.9,2394.6,5.2664011]
[1725528544846,3.6254,2394.8,2394.5,1.51389703]
[1725528545041,3.6254,2394.8,2394.5,1.96159703]
[1725528545346,0.87156593,2394.9,2394.5,0.00626593]
[1725528545555,0.41759,2394.8,2394.5,4.72169703]
[1725528545948,3.62539,2394.8,2394.5,0.42390593]
[1725528546458,3.6254,2394.8,2394.5,0.42390593]
[1725528547451,0.87156593,2394.9,2394.7,0.4176]
[1725528547649,0.87156593,2394.9,2394.8,0.41759]
[1725528548958,0.43416593,2394.9,2394.8,0.41759]
[1725528550259,0.00626593,2394.9,2394.8,4.59359]
[1725528551751,0.00626593,2394.9,2394.8,0.41759]
[1725528556149,0.00626593,2394.9,2394.8,2.50555]
[1725528556355,2.89,2395.5,2395.3,0.4175]
[1725528556356,0.4211,2395.4,2395.3,0.4175]
[1725528559865,0.4211,2395.4,2395.1,0.41752]
[1725528560065,3.2078,2395.2,2394.9,0.41755]
[1725528560258,0.41756,2395.0,2394.9,0.41755]
[1725528560966,4.20125,2395.1,2395.0,0.41755]
[1725528561164,4.20125,2395.1,2394.7,4.197]
[1725528561165,0.41756,2395.0,2394.9,0.41756]
[1725528561555,0.41759,2394.8,2394.6,0.41762]
[1725528561760,3.2078,2394.8,2394.7,0.4176]
[1725528563162,3.62539,2394.8,2394.7,0.4176]
[1725528563657,3.62539,2394.8,2394.6,0.41761]
[1725528563862,0.4299,2394.7,2394.6,0.41761]
[1725528564063,0.8475,2394.7,2394.6,0.41761]
[1725528564462,0.8475,2394.7,2394.5,0.00626593]
[1725528564463,1.46168,2394.6,2394.5,0.00626593]
[1725528564782,0.41772,2394.1,2393.9,1.5077211]
[1725528564963,3.6255,2394.2,2393.9,0.41773]
[1725528565268,0.4588,2394.1,2393.9,0.41773]
[1725528565461,0.4588,2394.1,2394.0,0.41773]
[1725528565660,0.4299,2394.3,2393.9,1.0899911]
[1725528565661,0.43616593,2394.3,2393.9,1.0899911]
[1725528565960,0.43616593,2394.3,2394.2,0.41769]
[1725528568472,0.85384593,2394.3,2394.1,0.4177]
[1725528568661,0.43616593,2394.3,2394.1,0.4177]
[1725528568976,0.43616593,2394.3,2394.1,0.41771]
[1725528569265,0.43616593,2394.3,2394.2,0.41769]
[1725528574072,0.00626593,2394.3,2394.2,3.62549]
[1725528574778,0.00626593,2394.3,2394.2,0.41769]
[1725528575075,0.00626593,2394.3,2394.2,3.62549]
[1725528575580,0.00626593,2394.3,2394.2,0.41769]
[1725528576481,0.46546593,2394.3,2394.2,0.41769]
[1725528576979,0.88313593,2394.3,2394.2,0.41769]
[1725528577587,0.88313593,2394.3,2394.0,0.4367]
[1725528577877,0.88313593,2394.3,2394.2,0.41769]
[1725528578582,0.00626593,2394.3,2394.2,0.41769]
[1725528580088,0.00626593,2394.3,2394.2,3.62549]
[1725528581775,0.00626593,2394.3,2394.2,0.41769]
[1725528583085,0.00626593,2394.3,2394.2,4.59449]
[1725528583884,0.00626593,2394.3,2394.2,5.63873]
[1725528584083,0.4664,2394.6,2394.5,0.41764]
[1725528585302,0.88402,2394.6,2394.5,0.41764]
[1725528585503,0.4664,2394.6,2394.5,0.41764]
[1725528586507,0.88402,2394.6,2394.5,0.41764]
[1725528586803,0.41764,2394.5,2394.4,0.41765]
[1725528587005,0.41766,2394.4,2394.3,0.41767]
[1725528587190,1.51048,2394.6,2394.2,0.41768]
[1725528587191,0.41768,2394.3,2394.2,0.41768]
[1725528587395,0.86198,2394.3,2394.2,0.41768]
[1725528588707,0.4443,2394.3,2394.2,0.41768]
[1725528588903,0.41765,2394.5,2394.4,0.41766]
[1725528589111,1.32923,2394.6,2394.5,0.41764]
[1725528589294,1.32922,2394.6,2394.5,0.41764]
[1725528590200,0.41765,2394.5,2394.4,0.41765]
[1725528593008,0.9116,2394.6,2394.5,0.41764]
[1725528593009,1.32923,2394.6,2394.5,0.41764]
[1725528597508,0.9116,2394.6,2394.5,0.41764]
[1725528598511,0.4452,2394.6,2394.5,0.41764]
[1725528598714,0.42846593,2394.8,2394.7,0.4176]
[1725528598909,0.00626593,2394.8,2394.7,0.4176]
[1725528599124,0.00626593,2394.8,2394.7,4.5936]
[1725528599317,0.00626593,2394.8,2394.7,6.05942]
[1725528599707,0.00626593,2394.8,2394.7,5.0154]
[1725528600014,0.41761,2394.7,2394.5,0.41763]
[1725528600210,0.00626593,2394.8,2394.5,0.41763]
[1725528600211,1.3293,2394.6,2394.5,0.41763]
[1725528603418,0.8841,2394.6,2394.5,0.41763]
[1725528603726,0.446,2394.6,2394.5,0.41763]
[1725528606215,0.446,2394.6,2394.5,1.46174]
[1725528606414,0.43086593,2394.8,2394.7,0.4176]
[1725528606624,0.4581,2395.0,2394.7,2.89]
[1725528606817,0.4337,2395.2,2395.1,0.41753]
[1725528607722,0.4337,2395.2,2395.1,4.59273]
[1725528608122,0.4337,2395.2,2395.1,0.41753]
[1725528609718,3.2078,2395.3,2395.2,0.41752]
[1725528613525,16.273,2395.3,2395.0,0.00626593]
[1725528613724,3.30753,2395.1,2395.0,0.00626593]
[1725528613926,4.35137,2395.1,2395.0,0.00626593]
[1725528614228,14.52657,2395.1,2395.0,0.00626593]
[1725528614522,13.48273,2395.1,2395.0,0.00626593]
[1725528615228,13.92203,2395.1,2395.0,0.00626593]
[1725528615821,7.92203,2395.1,2395.0,0.00626593]
[1725528616022,5.03203,2395.1,2395.0,0.42381593]
[1725528616224,0.4393,2395.1,2395.0,0.42381593]
[1725528616623,3.2078,2395.3,2395.2,0.41752]
[1725528617328,3.6253,2395.3,2395.2,0.41752]
[1725528617728,3.2078,2395.3,2395.2,0.41752]
[1725528619133,3.62531,2395.3,2395.2,0.41752]
[1725528619434,0.41753,2395.1,2395.0,0.00626593]
[1725528620329,13.48273,2395.1,2395.0,0.00626593]
[1725528620523,1.04398,2394.8,2394.3,1.0899911]
[1725528620723,0.41765,2394.5,2394.4,0.41766]
[1725528620931,0.41766,2394.4,2394.3,0.41766]
[1725528621132,0.41767,2394.4,2394.2,0.41769]
[1725528621333,0.41771,2394.1,2394.0,1.0899911]
[1725528621538,2.89,2394.5,2394.1,0.4177]
[1725528621539,3.2078,2394.3,2394.1,0.4177]
[1725528621737,0.4303,2394.2,2394.1,0.4177]
[1725528622035,0.8615,2394.2,2394.1,0.4177]
[1725528622635,3.2078,2394.3,2394.2,0.41769]
[1725528624739,3.2078,2394.3,2394.2,1.46193]
[1725528624926,0.00626593,2394.4,2394.3,0.41767]
[1725528625127,0.41769,2394.2,2393.8,1.09625703]
[1725528625331,0.8947,2394.1,2393.9,0.41773]
[1725528625526,0.4364,2394.0,2393.9,0.41773]
[1725528627525,0.85414,2394.0,2393.8,0.42402593]
[1725528627741,0.4364,2394.0,2393.8,0.42402593]
[1725528627934,0.4364,2394.0,2393.9,0.41774]
[1725528631032,4.1025,2394.1,2394.0,0.41773]
[1725528631232,4.1025,2394.1,2393.9,0.41773]
[1725528631432,4.1025,2394.1,2394.0,0.41773]
[1725528632337,3.2078,2394.1,2394.0,0.41773]
[1725528633141,3.2078,2394.1,2394.0,0.85773]
[1725528635546,3.2078,2394.1,2394.0,0.41773]
[1725528644151,0.41774,2393.9,2393.8,0.00626593]
[1725528644948,0.86214,2393.9,2393.8,0.00626593]
[1725528646453,5.03974,2393.9,2393.8,0.00626593]
[1725528648461,1.04441,2393.8,2393.1,1.0899911]
[1725528648646,1.04441,2393.8,2392.7,5.60843512]
[1725528648647,0.41788,2393.1,2392.7,0.84484]
[1725528648846,0.9178,2393.0,2392.8,0.41793]
[1725528649157,1.3756,2393.0,2392.8,0.41793]
[1725528649841,1.3756,2393.0,2392.7,0.43316593]
[1725528649842,1.79352,2393.0,2392.7,0.43316593]
[1725528650048,0.41794,2392.8,2392.7,0.00626593]
[1725528650653,7.48714,2392.8,2392.7,0.00626593]
[1725528651651,3.2078,2392.9,2392.7,0.42421593]
[1725528651843,3.62573,2392.9,2392.7,0.00626593]
[1725528652042,0.41794,2392.8,2392.7,0.00626593]
[1725528652645,3.62573,2392.9,2392.7,0.00626593]
[1725528654447,3.2078,2392.9,2392.7,0.00626593]
[1725528654644,0.00626593,2393.1,2393.0,0.4179]
[1725528654958,4.111,2393.6,2392.8,7.387]
[1725528654959,5.0086,2393.6,2393.4,0.41782]
[1725528655159,0.8976,2393.6,2393.4,0.41782]
[1725528655463,7.9652,2393.6,2393.4,0.41782]
[1725528655643,8.383,2393.6,2393.3,0.41784]
[1725528655848,8.383,2393.6,2393.1,3.2078]
[1725528655849,4.2054,2393.6,2393.4,0.41783]
[1725528656153,0.8976,2393.6,2393.5,0.41781]
[1725528657051,0.451,2393.6,2393.5,0.41781]
[1725528657461,3.21406593,2393.7,2393.6,0.4178]
[1725528659145,0.00626593,2393.7,2393.6,0.4178]
[1725528661348,0.42405593,2393.7,2393.4,0.41782]
[1725528661752,1.71365593,2393.7,2393.4,0.41782]
[1725528661954,0.4178,2393.6,2393.3,0.84254]
[1725528662152,0.4178,2393.6,2393.3,0.41784]
[1725528662557,1.29586593,2393.7,2393.5,0.41781]
[1725528662858,1.71364593,2393.7,2393.5,0.41781]
[1725528663050,1.71364593,2393.7,2393.2,3.2078]
[1725528663051,0.4178,2393.6,2393.4,0.41782]
[1725528663252,0.4178,2393.6,2393.2,3.2078]
[1725528663457,1.71365593,2393.7,2393.2,3.2078]
[1725528663656,2.89,2393.6,2392.9,3.7848]
[1725528663957,2.89,2393.4,2392.9,0.4179]
[1725528664358,2.89,2393.4,2393.0,0.4179]
[1725528664359,0.41788,2393.2,2393.0,0.4179]
[1725528664554,0.41786,2393.3,2393.1,0.41788]
[1725528664955,3.30784,2393.4,2393.2,0.41787]
[1725528665260,3.62562,2393.5,2393.3,0.41785]
[1725528665456,0.41784,2393.4,2393.2,0.41786]
[1725528665858,0.41784,2393.4,2393.0,3.2078]
[1725528665859,2.89,2393.4,2393.0,3.2078]
[1725528666160,2.89,2393.4,2393.3,0.41785]
[1725528666550,7.0684,2393.4,2393.3,0.41785]
[1725528667656,1.29586593,2393.7,2393.4,0.41782]
[1725528667961,0.41781,2393.6,2393.4,0.41782]
[1725528668152,1.29586593,2393.7,2393.5,0.41781]
[1725528668153,1.71365593,2393.7,2393.5,0.41781]
[1725528668757,1.71365593,2393.7,2393.1,4.69929]
[1725528669066,1.29586593,2393.7,2393.6,0.4178]
[1725528669262,1.71364593,2393.7,2393.6,0.4178]
[1725528669458,1.29586593,2393.7,2393.6,0.4178]
[1725528669762,0.00626593,2393.7,2393.6,1.4623]
[1725528669954,0.00626593,2393.7,2393.6,1.9091]
[1725528670461,0.00626593,2393.7,2393.6,0.8646]
[1725528671753,0.00626593,2393.7,2393.6,0.4178]
[1725528673660,2.89626593,2393.7,2393.4,0.4668]
[1725528673857,1.3524,2393.6,2393.1,3.6496]
[1725528674062,0.41784,2393.4,2393.2,0.41785]
[1725528674257,0.41786,2393.3,2393.1,0.41787]
[1725528674460,2.89,2393.2,2392.9,0.41791]
[1725528674665,2.89,2393.2,2392.8,0.41792]
[1725528674666,0.41791,2393.0,2392.8,0.41792]
[1725528674863,0.41791,2393.0,2392.7,3.67536593]
[1725528674864,2.89,2393.0,2392.7,3.21406593]
[1725528675069,0.4636,2392.9,2392.7,3.21406593]
[1725528675272,0.88153,2392.9,2392.7,3.63201593]
[1725528675665,0.4636,2392.9,2392.8,0.41794]
[1725528675873,0.4636,2392.9,2392.7,3.63201593]
[1725528676168,0.88153,2392.9,2392.7,3.63201593]
[1725528678169,0.4636,2392.9,2392.7,3.63201593]
[1725528678366,0.4636,2392.9,2392.8,0.41794]
[1725528679168,0.88152,2392.9,2392.7,3.63201593]
[1725528679373,0.4636,2392.9,2392.7,3.63201593]
[1725528679870,0.4636,2392.9,2392.8,0.41794]
[1725528680062,3.6413,2393.2,2393.1,0.41788]
[1725528680261,3.2078,2393.2,2393.1,0.41788]
[1725528681073,3.62562,2393.5,2393.2,0.41785]
[1725528681273,3.62562,2393.5,2393.3,0.41785]
[1725528681476,3.62562,2393.5,2392.8,3.93482]
[1725528681477,3.62562,2393.5,2393.2,0.41785]
[1725528682973,3.62562,2393.5,2393.3,0.41785]
[1725528683472,3.2078,2393.5,2393.4,0.41783]
[1725528684277,0.00626593,2393.7,2393.6,0.4178]
[1725528684470,0.00626593,2393.7,2393.6,3.6256]
[1725528684671,0.00626593,2393.7,2393.6,7.8032]
[1725528685878,5.93e-06,2393.7,2393.6,9.3095]
[1725528686275,5.93e-06,2393.7,2393.6,16.3994911]
[1725528686486,11.076,2395.6,2393.9,1.04433]
[1725528686783,7.42691,2395.3,2394.8,0.41759]
[1725528686974,7.42691,2395.3,2395.0,0.41754]
[1725528686975,11.13600449,2395.3,2395.0,0.41754]
[1725528687172,6.5594,2395.3,2395.0,0.41754]
[1725528687476,3.6694,2395.3,2394.7,6.0978]
[1725528687689,3.6694,2395.3,2395.0,0.41754]
[1725528687992,3.2078,2395.3,2395.0,0.41754]
[1725528688285,0.41738,2396.0,2395.3,0.4175]
[1725528688474,6.0978,2395.8,2395.3,0.4175]
[1725528688978,6.0978,2395.8,2395.3,3.6253]
[1725528689176,6.51522,2395.8,2395.3,3.2078]
[1725528689679,6.0978,2395.8,2395.3,3.62529]
[1725528690067,3.2078,2395.8,2395.3,3.62529]
[1725528690268,6.0978,2395.8,2395.2,3.2078]
[1725528690473,6.51522,2395.8,2395.2,3.62531]
[1725528690882,6.51522,2395.8,2395.3,0.4175]
[1725528691175,0.41743,2395.7,2395.2,3.62531]
[1725528691477,0.41744,2395.7,2395.2,3.2078]
[1725528691679,0.41744,2395.7,2395.2,3.62532]
[1725528692078,2.89,2395.6,2395.2,0.41752]
[1725528692277,3.2078,2395.5,2395.2,0.41752]
[1725528692478,3.2078,2395.5,2395.3,0.4175]
[1725528693589,3.2078,2395.5,2395.4,0.41748]
[1725528695271,3.2078,2395.5,2395.0,3.6696]
[1725528695572,3.2078,2395.5,2395.3,0.41749]
[1725528696974,3.2078,2395.5,2395.2,0.41751]
[1725528697176,3.2078,2395.5,2395.1,0.41753]
[1725528697482,6.0978,2395.2,2394.9,0.00626593]
[1725528697779,3.62532,2395.2,2394.9,0.42382593]
[1725528699076,3.2078,2395.2,2395.0,0.41755]
[1725528699275,3.2078,2395.2,2395.1,0.41753]
[1725528700187,3.6661,2395.7,2395.1,7.383]
[1725528700478,3.6661,2395.7,2395.6,0.41745]
[1725528700479,3.2078,2395.7,2395.6,0.41745]
[1725528703783,0.9032,2395.9,2395.8,0.41741]
[1725528703971,3.2078,2395.9,2395.8,0.41741]
[1725528704177,6.0978,2396.4,2395.7,2.89]
[1725528704377,6.0978,2396.4,2395.8,3.2078]
[1725528704378,6.51512,2396.4,2395.8,3.2078]
[1725528704675,0.41733,2396.3,2396.1,0.41735]
[1725528704876,6.0978,2396.4,2396.1,0.41735]
[1725528705079,6.0978,2396.4,2396.2,0.41733]
[1725528705272,3.2078,2396.4,2395.8,4.25131]
[1725528705478,3.2078,2396.4,2396.3,0.41733]
[1725528706587,0.9072,2396.6,2396.5,0.41729]
[1725528706991,3.62501,2397.0,2396.8,0.41724]
[1725528707292,4.05731,2397.0,2396.8,0.41724]
[1725528707483,0.4323,2397.0,2396.7,3.2078]
[1725528707883,0.4323,2397.0,2396.9,0.41722]
[1725528708691,0.4295,2397.2,2397.1,0.41719]
[1725528709984,0.4172,2397.1,2396.7,3.2078]
[1725528710189,2.89,2397.0,2396.7,0.41725]
[1725528710389,2.89,2397.0,2396.3,4.25112]
[1725528710390,2.89,2397.0,2396.8,0.41724]
[1725528710695,0.41719,2397.1,2396.9,0.41722]
[1725528710884,0.4295,2397.2,2396.6,2.89]
[1725528711080,0.41723,2396.9,2396.6,0.41727]
[1725528711285,0.41724,2396.8,2396.6,0.41727]
[1725528711693,3.2078,2397.0,2396.3,3.2078]
[1725528711986,0.41726,2396.7,2396.4,0.41731]
[1725528712183,0.41724,2396.9,2396.3,3.2078]
[1725528712389,0.41727,2396.7,2396.4,0.41729]
[1725528712591,0.41725,2396.8,2396.3,3.2078]
[1725528712790,3.6495,2397.0,2396.3,3.2078]
[1725528713090,0.41725,2396.8,2396.5,0.41729]
[1725528713296,3.6495,2397.0,2396.5,0.41729]
[1725528713596,0.4592,2396.7,2396.6,0.41727]
[1725528714591,3.6495,2397.0,2396.4,2.89]
[1725528714892,3.625,2397.0,2396.7,0.41725]
[1725528715196,3.625,2397.0,2396.6,0.41727]
[1725528715197,0.41724,2396.8,2396.6,0.41727]
[1725528715499,3.2078,2397.0,2396.6,0.41727]
[1725528715699,0.41723,2396.9,2396.6,0.41727]
[1725528715891,3.62501,2397.0,2396.8,0.41723]
[1725528716099,3.2078,2397.0,2396.8,0.41723]
[1725528716500,3.625,2397.0,2396.8,0.41723]
[1725528716702,3.2078,2397.0,2396.8,0.41723]
[1725528716997,3.2078,2397.0,2396.9,0.41722]
[1725528717396,0.4592,2397.1,2397.0,0.4172]
[1725528718498,0.4592,2397.1,2396.9,0.41721]
[1725528718699,0.4592,2397.1,2397.0,0.4172]
[1725528719393,3.62494,2397.4,2397.1,0.41717]
[1725528719595,0.41718,2397.2,2397.0,0.41719]
[1725528719999,0.41716,2397.3,2397.1,0.41719]
[1725528720188,3.2078,2397.4,2397.3,0.41715]
[1725528722607,3.2078,2397.4,2397.3,4.58835]
[1725528722800,3.2078,2397.4,2397.3,0.41715]
[1725528725104,3.62493,2397.4,2397.2,0.41716]
[1725528725308,3.6493,2397.4,2397.3,0.41715]
[1725528726598,4.06644,2397.4,2397.2,0.41716]
[1725528726803,0.41716,2397.3,2397.1,0.41718]
[1725528727007,0.41717,2397.3,2397.1,0.41718]
[1725528727804,0.41716,2397.3,2397.1,0.41718]
[1725528728001,0.41716,2397.3,2397.2,0.41717]
[1725528728207,0.41716,2397.3,2397.1,0.41718]
[1725528728603,0.41717,2397.2,2397.1,0.41718]
[1725528729199,0.41716,2397.3,2397.1,0.41718]
[1725528729402,0.41716,2397.3,2396.8,6.0978]
[1725528729403,0.41716,2397.3,2397.2,0.41717]
[1725528729805,0.41717,2397.2,2397.1,0.41718]
[1725528730310,0.41717,2397.2,2396.8,6.0978]
[1725528730311,0.41719,2397.1,2397.0,0.4172]
[1725528730813,0.41719,2397.1,2396.9,0.41721]
[1725528731119,3.6493,2397.4,2397.2,0.41716]
[1725528731418,4.06645,2397.4,2397.2,0.41716]
[1725528731608,4.06645,2397.4,2397.3,0.41715]
[1725528732012,8.23765,2397.4,2397.3,0.41715]
[1725528732511,3.6493,2397.4,2397.3,0.41715]
[1725528733509,3.6493,2397.4,2397.3,5.63124]
[1725528733510,3.2078,2397.4,2397.3,5.63124]
[1725528733712,3.2078,2397.4,2397.3,5.02185]
[1725528733906,3.2078,2397.4,2397.3,0.41715]
[1725528737110,3.62493,2397.4,2397.3,0.41715]
[1725528737415,3.6733,2397.4,2397.3,0.41715]
[1725528738118,3.2078,2397.4,2397.3,0.41715]
[1725528739819,3.2078,2397.4,2397.3,4.58835]
[1725528740319,3.2078,2397.4,2397.3,5.63124]
[1725528741011,3.2078,2397.4,2397.3,4.58835]
[1725528741517,7.379,2397.4,2397.3,0.41715]
[1725528741726,7.79615,2397.4,2397.2,0.41716]
[1725528742016,0.4576,2397.3,2397.2,0.41716]
[1725528742316,0.8995,2397.3,2397.2,0.41716]
[1725528742715,5.0707,2397.3,2396.5,0.4272]
[1725528742918,3.2078,2397.1,2396.3,6.0978]
[1725528743118,0.41726,2396.7,2396.5,0.41728]
[1725528743317,0.4576,2396.6,2396.1,0.84891593]
[1725528743523,3.62514,2396.2,2396.1,0.00626593]
[1725528743820,4.36526,2396.5,2396.1,3.21406593]
[1725528743821,0.432,2396.5,2396.1,3.21406593]
[1725528744016,0.432,2396.5,2396.2,3.62514]
[1725528744225,0.432,2396.5,2396.4,3.30731]
[1725528744423,0.84931,2396.5,2396.1,0.00626593]
[1725528744618,0.432,2396.5,2396.1,0.00626593]
[1725528744827,0.432,2396.5,2396.3,0.41731]
[1725528745223,0.432,2396.5,2396.4,0.41731]
[1725528746726,0.432,2396.5,2396.3,0.41732]
[1725528747027,0.432,2396.5,2396.4,0.41731]
[1725528748125,0.432,2396.5,2396.1,2.89626593]
[1725528748516,0.432,2396.5,2396.4,0.41731]
[1725528749723,0.4576,2396.6,2396.5,0.41729]
[1725528750318,0.4576,2396.6,2396.2,0.4533]
[1725528750524,0.4576,2396.6,2396.2,0.41733]
[1725528750525,0.4173,2396.5,2396.2,0.41733]
[1725528750725,0.8702,2396.5,2396.2,0.41733]
[1725528750920,0.8702,2396.5,2396.2,0.41734]
[1725528751120,0.41731,2396.4,2396.2,0.41734]
[1725528751514,0.4442,2396.3,2396.2,0.41734]
[1725528752326,0.4442,2396.3,2396.1,0.00626593]
[1725528752327,0.86153,2396.3,2396.1,0.42361593]
[1725528753126,5.63431,2396.2,2396.1,0.00626593]
[1725528753529,11.63431,2396.2,2396.1,0.00626593]
[1725528754636,10.59094,2396.2,2396.1,0.00626593]
[1725528754834,4.59094,2396.2,2396.1,0.00626593]
[1725528755227,10.59094,2396.2,2396.1,0.00626593]
[1725528755829,4.59094,2396.2,2396.1,0.00626593]
[1725528756135,5.63431,2396.2,2396.1,0.00626593]
[1725528756331,0.41744,2395.7,2395.5,0.41745]
[1725528756534,0.4254,2395.6,2395.5,0.41747]
[1725528757237,0.4462,2395.7,2395.6,0.41745]
[1725528757535,0.00626593,2395.8,2395.7,0.41743]
[1725528757830,0.00626593,2395.8,2395.7,3.30743]
[1725528758028,0.00626593,2395.8,2395.7,0.41743]
[1725528758927,0.00626593,2395.8,2395.7,4.59183]
[1725528760235,0.00626593,2395.8,2395.7,0.41743]
[1725528762434,0.42367593,2395.8,2395.6,0.41744]
[1725528762633,0.41743,2395.7,2395.5,0.41745]